fUST/lending_fUST_20240412
["ID","MTS","AMOUNT","RATE_DAILY","PERIOD"]
[322236635,1712908706071,2166.79798307,0.0002,10]
[322236646,1712908844356,17203.38807415,0.0002,2]
[322236647,1712908963875,167.59947956,0.000189,2]
[322236648,1712908964055,167.59947956,0.000239,2]
[322236650,1712909144156,-154.829687,0.00024899,2]
[322236651,1712909144177,-800.0,0.000269,2]
[322236652,1712909144199,-300.0,0.00026998,2]
[322236653,1712909144219,-300.0,0.00026998,2]
[322236654,1712909144239,-8251.89686784,0.00026999,2]
[322236656,1712909358133,-150.0,0.00024899,2]
[322236705,1712909432019,-300.0,0.00026998,2]
[322236706,1712909432029,-300.0,0.00026998,2]
[322236707,1712909432038,-2701.971356,0.00026999,2]
[322236708,1712909432050,-1185.08074884,0.00026999,2]
[322236712,1712909438065,-3629.37965218,0.00026999,2]
[322236714,1712909438454,-352.16,0.00026999,2]
[322236717,1712909438514,-1089.63628387,0.00026999,2]
[322237165,1712909443283,-2776.5,0.00026999,2]
[322237433,1712909445979,-3059.82715,0.00026999,2]
[322239040,1712910344121,-225.63849083,0.00026889,2]
[322239041,1712910344142,-1002.36711245,0.0002689,2]
[322239042,1712910344166,-419.38193031,0.000269,2]
[322239043,1712910344188,-300.0,0.00026998,2]
[322239044,1712910344213,-300.0,0.00026998,2]
[322239045,1712910344235,-7587.11186392,0.00026999,2]
[322239046,1712910344258,-5691.50822007,0.00027,2]
[322239047,1712910344281,-171.0,0.00027,2]
[322239048,1712910344306,-660.11220303,0.00027295,3]
[322239049,1712910344328,-393.51080733,0.00027297,2]
[322239050,1712910344352,-620.39736209,0.00027311,2]
[322239051,1712910344376,-393.51080733,0.00027365,2]
[322239052,1712910344400,-515.96424503,0.0002737,2]
[322239112,1712910632360,-236.10648443,0.00027296,2]
[322239113,1712910632371,-577.59817766,0.00027296,3]
[322239115,1712910632381,-236.10648439,0.00027296,2]
[322239116,1712910632392,-236.10648439,0.00027297,2]
[322239117,1712910632403,-236.10648439,0.00027297,2]
[322239118,1712910632414,-236.10648439,0.00027297,2]
[322239119,1712910632423,-3424.28730499,0.00027343,2]
[322239159,1712910638141,-4720.67742622,0.00027343,2]
[322239161,1712910638150,-300.0,0.00027392,2]
[322239163,1712910638159,-300.0,0.00027392,2]
[322239165,1712910638169,-225.46531263,0.00027393,2]
[322239167,1712910638178,-167.11488346,0.00027395,2]
[322239169,1712910638188,-250.0,0.00027395,2]
[322239171,1712910638198,-155.04639008,0.00027395,2]
[322239173,1712910638209,-820.33906884,0.00027395,2]
[322239175,1712910638220,-140.65691877,0.00027395,2]
[322239262,1712910639100,-2031.16700471,0.00027395,2]
[322239264,1712910639112,-753.92702667,0.00027395,2]
[322239266,1712910639121,-1156.48119419,0.00027395,2]
[322239269,1712910639133,-937.29636216,0.00027395,2]
[322239271,1712910639142,-34582.5616522,0.00027395,2]
[322239273,1712910639153,-223.82694587,0.00027396,2]
[322239275,1712910639162,-476.79494397,0.00027396,2]
[322239277,1712910639174,-239.19603286,0.00027396,2]
[322239279,1712910639184,-181.40027232,0.00027396,2]
[322239281,1712910639194,-21994.94900077,0.00027396,2]
[322239283,1712910639203,-220.8262263,0.00027397,2]
[322239285,1712910639212,-155.67866071,0.00027397,2]
[322239287,1712910639221,-287.86371445,0.00027397,2]
[322239289,1712910639232,-500.0,0.00027397,2]
[322239291,1712910639241,-1079.85,0.00027397,2]
[322239293,1712910639250,-278.076073,0.00027397,2]
[322239295,1712910639258,-300.0,0.00027397,2]
[322239297,1712910639267,-500.0,0.00027397,2]
[322239299,1712910639276,-500.0,0.00027397,2]
[322239313,1712910639398,-500.0,0.00027397,2]
[322239315,1712910639410,-500.0,0.00027397,2]
[322239317,1712910639419,-158.09608025,0.00027397,2]
[322239319,1712910639430,-500.0,0.00027397,2]
[322239321,1712910639440,-762.08,0.00027397,2]
[322239323,1712910639450,-500.0,0.00027397,2]
[322239325,1712910639459,-151.0,0.00027397,2]
[322239327,1712910639470,-151.0,0.00027397,2]
[322239330,1712910639483,-360.99868882,0.00027397,2]
[322239332,1712910639493,-500.0,0.00027397,2]
[322239334,1712910639503,-504.864169,0.00027397,2]
[322239336,1712910639512,-500.0,0.00027397,2]
[322239338,1712910639522,-500.0,0.00027397,2]
[322239340,1712910639531,-500.0,0.00027397,2]
[322239342,1712910639540,-500.0,0.00027397,2]
[322239344,1712910639550,-500.0,0.00027397,2]
[322239346,1712910639559,-582.89,0.00027397,2]
[322239348,1712910639569,-151.0,0.00027397,2]
[322239350,1712910639579,-151.0,0.00027397,2]
[322239352,1712910639588,-151.0,0.00027397,2]
[322239354,1712910639598,-151.0,0.00027397,2]
[322239356,1712910639608,-151.0,0.00027397,2]
[322239359,1712910639617,-151.0,0.00027397,2]
[322239362,1712910639626,-151.0,0.00027397,2]
[322239365,1712910639635,-151.0,0.00027397,2]
[322239368,1712910639645,-298.489128,0.00027397,2]
[322239371,1712910639655,-500.0,0.00027397,2]
[322239374,1712910639664,-500.0,0.00027397,2]
[322239376,1712910639674,-500.0,0.00027397,2]
[322239379,1712910639683,-205.552096,0.00027397,2]
[322239381,1712910639692,-205.552096,0.00027397,2]
[322239383,1712910639702,-500.0,0.00027397,2]
[322239385,1712910639711,-205.552096,0.00027397,2]
[322239387,1712910639721,-205.552096,0.00027397,2]
[322239389,1712910639732,-205.552096,0.00027397,2]
[322239391,1712910639741,-205.552096,0.00027397,2]
[322239393,1712910639751,-205.552096,0.00027397,2]
[322239395,1712910639760,-205.552096,0.00027397,2]
[322239398,1712910639770,-205.552096,0.00027397,2]
[322239401,1712910639780,-205.552096,0.00027397,2]
[322239403,1712910639789,-205.552096,0.00027397,2]
[322239405,1712910639798,-205.552096,0.00027397,2]
[322239407,1712910639809,-205.552096,0.00027397,2]
[322239409,1712910639818,-205.552096,0.00027397,2]
[322239411,1712910639828,-205.552096,0.00027397,2]
[322239413,1712910639837,-500.0,0.00027397,2]
[322239415,1712910639846,-205.552096,0.00027397,2]
[322239416,1712910639858,-205.552096,0.00027397,2]
[322239418,1712910639868,-205.552096,0.00027397,2]
[322239421,1712910639878,-151.0,0.00027397,2]
[322239423,1712910639888,-151.083593,0.00027397,2]
[322239424,1712910639899,-500.0,0.00027397,2]
[322239427,1712910639910,-552.55,0.00027397,2]
[322239429,1712910639920,-591.54,0.00027397,2]
[322239431,1712910639930,-500.0,0.00027397,2]
[322239433,1712910639940,-500.0,0.00027397,2]
[322239435,1712910639950,-500.0,0.00027397,2]
[322239437,1712910639959,-500.0,0.00027397,2]
[322239439,1712910639968,-500.0,0.00027397,2]
[322239441,1712910639979,-615.32305045,0.00027397,2]
[322239443,1712910639988,-500.0,0.00027397,2]
[322239445,1712910639997,-1718.39,0.00027397,2]
[322239447,1712910640007,-500.0,0.00027397,2]
[322239449,1712910640017,-500.0,0.00027397,2]
[322239451,1712910640026,-1277.14,0.00027397,2]
[322239453,1712910640035,-500.0,0.00027397,2]
[322239455,1712910640044,-960.86,0.00027397,2]
[322239456,1712910640053,-611.17876315,0.00027397,2]
[322239458,1712910640062,-500.0,0.00027397,2]
[322239460,1712910640072,-500.0,0.00027397,2]
[322239463,1712910640082,-432.00653899,0.00027397,2]
[322239465,1712910640092,-905.73,0.00027397,2]
[322239466,1712910640101,-1215.14,0.00027397,2]
[322239469,1712910640111,-500.0,0.00027397,2]
[322239471,1712910640120,-500.0,0.00027397,2]
[322239473,1712910640129,-500.0,0.00027397,2]
[322239475,1712910640138,-500.0,0.00027397,2]
[322239477,1712910640147,-500.0,0.00027397,2]
[322239479,1712910640156,-946.61,0.00027397,2]
[322239481,1712910640165,-500.0,0.00027397,2]
[322239483,1712910640174,-516.25016798,0.00027397,2]
[322239485,1712910640183,-500.0,0.00027397,2]
[322239486,1712910640193,-500.0,0.00027397,2]
[322239487,1712910640202,-1484.71,0.00027397,2]
[322239488,1712910640213,-500.0,0.00027397,2]
[322239489,1712910640223,-543.25,0.00027397,2]
[322239490,1712910640233,-500.0,0.00027397,2]
[322239491,1712910640243,-500.0,0.00027397,2]
[322239492,1712910640252,-500.0,0.00027397,2]
[322239493,1712910640262,-500.0,0.00027397,2]
[322239494,1712910640271,-500.0,0.00027397,2]
[322239495,1712910640280,-500.0,0.00027397,2]
[322239496,1712910640289,-500.0,0.00027397,2]
[322239497,1712910640298,-500.0,0.00027397,2]
[322239498,1712910640307,-500.0,0.00027397,2]
[322239499,1712910640316,-2044.88,0.00027397,2]
[322239500,1712910640325,-500.0,0.00027397,2]
[322239501,1712910640335,-500.0,0.00027397,2]
[322239502,1712910640344,-1198.63,0.00027397,2]
[322239503,1712910640353,-500.0,0.00027397,2]
[322239504,1712910640362,-1555.45,0.00027397,2]
[322239505,1712910640371,-500.0,0.00027397,2]
[322239506,1712910640380,-1051.76,0.00027397,2]
[322239507,1712910640390,-3834.84,0.00027397,2]
[322239509,1712910640399,-500.0,0.00027397,2]
[322239511,1712910640408,-500.0,0.00027397,2]
[322239513,1712910640417,-1015.27,0.00027397,2]
[322239515,1712910640427,-500.0,0.00027397,2]
[322239517,1712910640436,-985.4,0.00027397,2]
[322239520,1712910640445,-500.0,0.00027397,2]
[322239523,1712910640454,-151.0,0.00027397,2]
[322239525,1712910640463,-151.0,0.00027397,2]
[322239527,1712910640472,-1438.95,0.00027397,2]
[322239529,1712910640482,-151.0,0.00027397,2]
[322239531,1712910640491,-151.0,0.00027397,2]
[322239533,1712910640500,-500.0,0.00027397,2]
[322239535,1712910640509,-151.0,0.00027397,2]
[322239537,1712910640518,-151.0,0.00027397,2]
[322239539,1712910640527,-151.0,0.00027397,2]
[322239541,1712910640537,-556.76,0.00027397,2]
[322239543,1712910640547,-500.0,0.00027397,2]
[322239545,1712910640555,-13690.89,0.00027397,2]
[322239547,1712910640564,-500.0,0.00027397,2]
[322239549,1712910640574,-500.0,0.00027397,2]
[322239551,1712910640582,-500.0,0.00027397,2]
[322239552,1712910640591,-1092.52,0.00027397,2]
[322239553,1712910640600,-1178.35,0.00027397,2]
[322239555,1712910640609,-507.03594079,0.00027397,2]
[322239557,1712910640620,-2756.55,0.00027397,2]
[322239559,1712910640629,-259.92770034,0.00027397,2]
[322239561,1712910640639,-924.03,0.00027397,2]
[322239563,1712910640648,-500.0,0.00027397,2]
[322239565,1712910640657,-500.0,0.00027397,2]
[322239567,1712910640666,-500.0,0.00027397,2]
[322239569,1712910640675,-1143.29,0.00027397,2]
[322239571,1712910640684,-591.51596619,0.00027397,2]
[322239573,1712910640693,-500.0,0.00027397,2]
[322239575,1712910640702,-2177.16,0.00027397,2]
[322239577,1712910640711,-151.0,0.00027397,2]
[322239579,1712910640720,-151.0,0.00027397,2]
[322239581,1712910640730,-151.0,0.00027397,2]
[322239583,1712910640739,-151.0,0.00027397,2]
[322239585,1712910640748,-151.0,0.00027397,2]
[322239587,1712910640757,-151.0,0.00027397,2]
[322239589,1712910640766,-151.0,0.00027397,2]
[322239591,1712910640776,-151.0,0.00027397,2]
[322239593,1712910640785,-151.0,0.00027397,2]
[322239595,1712910640794,-1630.82,0.00027397,2]
[322239597,1712910640803,-4409.76,0.00027397,2]
[322239599,1712910640812,-5659.2,0.00027397,2]
[322239601,1712910640822,-151.0,0.00027397,2]
[322239603,1712910640831,-151.0,0.00027397,2]
[322239605,1712910640840,-151.0,0.00027397,2]
[322239607,1712910640852,-151.0,0.00027397,2]
[322239609,1712910640861,-151.0,0.00027397,2]
[322239611,1712910640872,-151.0,0.00027397,2]
[322239613,1712910640882,-151.0,0.00027397,2]
[322239615,1712910640893,-151.0,0.00027397,2]
[322239617,1712910640902,-151.0,0.00027397,2]
[322239619,1712910640913,-201.007618,0.00027397,2]
[322239621,1712910640923,-753.67,0.00027397,2]
[322239623,1712910640934,-188.76934425,0.00027397,2]
[322239625,1712910640944,-1621.63,0.00027397,2]
[322239627,1712910640953,-500.0,0.00027397,2]
[322239629,1712910640962,-11712.34,0.00027397,2]
[322239631,1712910640971,-500.0,0.00027397,2]
[322239633,1712910640980,-500.0,0.00027397,2]
[322239635,1712910640989,-500.0,0.00027397,2]
[322239637,1712910640998,-1078.69,0.00027397,2]
[322239638,1712910641008,-500.0,0.00027397,2]
[322239641,1712910641017,-1709.3,0.00027397,2]
[322239643,1712910641027,-2676.3,0.00027397,2]
[322239645,1712910641037,-532.65883253,0.00027397,2]
[322239647,1712910641046,-500.0,0.00027397,2]
[322239649,1712910641055,-151.0,0.00027397,2]
[322239651,1712910641064,-151.0,0.00027397,2]
[322239652,1712910641074,-151.0,0.00027397,2]
[322239654,1712910641083,-151.0,0.00027397,2]
[322239656,1712910641092,-166.666666,0.00027397,2]
[322239658,1712910641103,-151.0,0.00027433,2]
[322239661,1712910641112,-153.0,0.000275,2]
[322239663,1712910641122,-202.8348577,0.000275,2]
[322239665,1712910641131,-202.8348577,0.000275,2]
[322239667,1712910641140,-153.0,0.000275,2]
[322239668,1712910641150,-202.8348577,0.000275,2]
[322239671,1712910641159,-153.0,0.000275,2]
[322239673,1712910641168,-202.8732917,0.000275,2]
[322239675,1712910641177,-202.8348577,0.000275,2]
[322239677,1712910641187,-202.8348577,0.000275,2]
[322239679,1712910641196,-205.552096,0.00027501,2]
[322239681,1712910641205,-205.552097,0.00027501,2]
[322239682,1712910641216,-3624.853117,0.000276,2]
[322239685,1712910641225,-536.1824083,0.000276,2]
[322239687,1712910641235,-202.8348577,0.000276,2]
[322239689,1712910641244,-153.0,0.000276,2]
[322239691,1712910641254,-151.0,0.000276,2]
[322239693,1712910641263,-3244.73262931,0.00027669,2]
[322239695,1712910641272,-847.55560545,0.00027669,2]
[322239697,1712910641282,-3736.78008316,0.00027669,2]
[322239699,1712910641291,-1866.41705732,0.00027669,2]
[322239701,1712910641301,-154.9690062,0.00027669,2]
[322239703,1712910641310,-546.18933093,0.00027669,2]
[322239705,1712910641319,-1519.43393804,0.00027669,2]
[322239707,1712910641328,-1799.70965994,0.00027669,2]
[322239709,1712910641337,-9421.48697164,0.00027669,2]
[322239711,1712910641346,-151.0,0.00027669,2]
[322239713,1712910641355,-176.317594,0.00027669,2]
[322239715,1712910641364,-259.273416,0.00027669,2]
[322239717,1712910641373,-1307.84743807,0.0002767,2]
[322239719,1712910641382,-2616.74714193,0.0002767,2]
[322239721,1712910641392,-204.5401905,0.0002767,2]
[322239723,1712910641401,-1107.00758771,0.00027671,4]
[322239725,1712910641410,-1079.85,0.00027671,2]
[322239727,1712910641419,-300.0,0.00027671,2]
[322239729,1712910641429,-500.0,0.00027671,2]
[322239731,1712910641438,-623.16563812,0.00027671,2]
[322239733,1712910641447,-500.0,0.00027671,2]
[322239735,1712910641457,-762.08,0.00027671,2]
[322239737,1712910641467,-500.0,0.00027671,2]
[322239752,1712910641601,-500.0,0.00027671,2]
[322239754,1712910641612,-500.0,0.00027671,2]
[322239756,1712910641622,-500.0,0.00027671,2]
[322239758,1712910641631,-500.0,0.00027671,2]
[322239760,1712910641641,-500.0,0.00027671,2]
[322239762,1712910641651,-500.0,0.00027671,2]
[322239764,1712910641660,-582.89,0.00027671,2]
[322239766,1712910641670,-500.0,0.00027671,2]
[322239768,1712910641680,-500.0,0.00027671,2]
[322239770,1712910641689,-500.0,0.00027671,2]
[322239772,1712910641698,-500.0,0.00027671,2]
[322239774,1712910641708,-500.0,0.00027671,2]
[322239776,1712910641718,-591.54,0.00027671,2]
[322239778,1712910641727,-303.43976766,0.00027671,2]
[322239780,1712910641738,-500.0,0.00027671,2]
[322239782,1712910641747,-500.0,0.00027671,2]
[322239784,1712910641757,-500.0,0.00027671,2]
[322239786,1712910641767,-500.0,0.00027671,2]
[322239788,1712910641775,-500.0,0.00027671,2]
[322239790,1712910641785,-1718.39,0.00027671,2]
[322239792,1712910641794,-505.2499761,0.00027671,2]
[322239794,1712910641804,-500.0,0.00027671,2]
[322239796,1712910641813,-1277.14,0.00027671,2]
[322239798,1712910641822,-500.0,0.00027671,2]
[322239800,1712910641831,-960.86,0.00027671,2]
[322239802,1712910641842,-172.50814298,0.00027671,2]
[322239804,1712910641852,-905.73,0.00027671,2]
[322239805,1712910641861,-1215.14,0.00027671,2]
[322239807,1712910641871,-500.0,0.00027671,2]
[322239809,1712910641880,-500.0,0.00027671,2]
[322239811,1712910641891,-946.61,0.00027671,2]
[322239813,1712910641900,-500.0,0.00027671,2]
[322239815,1712910641910,-1484.71,0.00027671,2]
[322239817,1712910641919,-543.25,0.00027671,2]
[322239819,1712910641929,-500.0,0.00027671,2]
[322239822,1712910641939,-500.0,0.00027671,2]
[322239824,1712910641949,-573.03156331,0.00027671,2]
[322239826,1712910641958,-500.0,0.00027671,2]
[322239828,1712910641967,-500.0,0.00027671,2]
[322239830,1712910641976,-2044.88,0.00027671,2]
[322239832,1712910641988,-500.0,0.00027671,2]
[322239834,1712910641997,-1198.63,0.00027671,2]
[322239836,1712910642006,-500.0,0.00027671,2]
[322239838,1712910642015,-1555.45,0.00027671,2]
[322239840,1712910642025,-500.0,0.00027671,2]
[322239841,1712910642035,-203.48441165,0.00027671,2]
[322239844,1712910642053,-848.27558835,0.00027671,2]
[322239846,1712910642062,-3834.84,0.00027671,2]
[322239848,1712910642072,-500.0,0.00027671,2]
[322239851,1712910642082,-1015.27,0.00027671,2]
[322239852,1712910642092,-500.0,0.00027671,2]
[322239855,1712910642102,-985.4,0.00027671,2]
[322239857,1712910642111,-500.0,0.00027671,2]
[322239859,1712910642120,-1438.95,0.00027671,2]
[322239861,1712910642129,-500.0,0.00027671,2]
[322239863,1712910642139,-556.76,0.00027671,2]
[322239865,1712910642148,-500.0,0.00027671,2]
[322239867,1712910642157,-13690.89,0.00027671,2]
[322239869,1712910642166,-500.0,0.00027671,2]
[322239871,1712910642175,-500.0,0.00027671,2]
[322239873,1712910642184,-452.60203108,0.00027671,2]
[322239875,1712910642194,-1092.52,0.00027671,2]
[322239877,1712910642203,-1178.35,0.00027671,2]
[322239878,1712910642213,-2756.55,0.00027671,2]
[322239880,1712910642222,-924.03,0.00027671,2]
[322239882,1712910642234,-500.0,0.00027671,2]
[322239884,1712910642243,-500.0,0.00027671,2]
[322239886,1712910642251,-372.55595094,0.00027671,2]
[322239888,1712910642260,-1143.29,0.00027671,2]
[322239891,1712910642269,-167.43447859,0.00027671,2]
[322239893,1712910642281,-2009.72552141,0.00027671,2]
[322239895,1712910642291,-1630.82,0.00027671,2]
[322239897,1712910642300,-4279.24541145,0.00027671,2]
[322239899,1712910642311,-130.51458855,0.00027671,2]
[322239901,1712910642320,-5659.2,0.00027671,2]
[322239903,1712910642329,-753.67,0.00027671,2]
[322239905,1712910642338,-1621.63,0.00027671,2]
[322239907,1712910642347,-500.0,0.00027671,2]
[322239909,1712910642356,-11712.34,0.00027671,2]
[322239910,1712910642366,-500.0,0.00027671,2]
[322239912,1712910642375,-500.0,0.00027671,2]
[322239914,1712910642385,-500.0,0.00027671,2]
[322239916,1712910642394,-1078.69,0.00027671,2]
[322239918,1712910642403,-500.0,0.00027671,2]
[322239919,1712910642412,-1709.3,0.00027671,2]
[322239921,1712910642423,-2676.3,0.00027671,2]
[322239923,1712910642432,-171.0,0.00027671,2]
[322239925,1712910642441,-501.8865876,0.000277,2]
[322239927,1712910642450,-236.04475203,0.00027944,2]
[322239929,1712910642459,-1079.85,0.00027945,2]
[322239931,1712910642468,-300.0,0.00027945,2]
[322239933,1712910642477,-500.0,0.00027945,2]
[322239935,1712910642489,-500.0,0.00027945,2]
[322239937,1712910642498,-762.08,0.00027945,2]
[322239939,1712910642507,-500.0,0.00027945,2]
[322239941,1712910642517,-500.0,0.00027945,2]
[322239942,1712910642526,-634.47120436,0.00027945,2]
[322239944,1712910642535,-500.0,0.00027945,2]
[322239946,1712910642544,-500.0,0.00027945,2]
[322239948,1712910642553,-500.0,0.00027945,2]
[322239950,1712910642562,-582.89,0.00027945,2]
[322239952,1712910642571,-500.0,0.00027945,2]
[322239954,1712910642580,-500.0,0.00027945,2]
[322239956,1712910642589,-500.0,0.00027945,2]
[322239958,1712910642598,-201.85256798,0.00027945,2]
[322239960,1712910642608,-591.54,0.00027945,2]
[322239963,1712910642617,-626.75563976,0.00027945,2]
[322239966,1712910642626,-565.84,0.00027945,2]
[322239969,1712910642635,-500.0,0.00027945,2]
[322239972,1712910642644,-500.0,0.00027945,2]
[322239975,1712910642655,-500.0,0.00027945,2]
[322239979,1712910642664,-1718.39,0.00027945,2]
[322239982,1712910642673,-500.0,0.00027945,2]
[322239986,1712910642683,-672.80893495,0.00027945,2]
[322240001,1712910642754,-500.0,0.00027671,2]
[322240004,1712910642764,-604.33106505,0.00027945,2]
[322240007,1712910642773,-500.0,0.00027945,2]
[322240011,1712910642782,-960.86,0.00027945,2]
[322240015,1712910642791,-905.73,0.00027945,2]
[322240019,1712910642800,-1215.14,0.00027945,2]
[322240023,1712910642809,-500.0,0.00027945,2]
[322240026,1712910642818,-500.0,0.00027945,2]
[322240030,1712910642827,-946.61,0.00027945,2]
[322240033,1712910642837,-500.0,0.00027945,2]
[322240036,1712910642851,-1484.71,0.00027945,2]
[322240039,1712910642860,-543.25,0.00027945,2]
[322240042,1712910642869,-500.0,0.00027945,2]
[322240045,1712910642878,-500.0,0.00027945,2]
[322240048,1712910642889,-555.04481474,0.00027945,2]
[322240051,1712910642899,-500.0,0.00027945,2]
[322240054,1712910642908,-2044.88,0.00027945,2]
[322240056,1712910642917,-500.0,0.00027945,2]
[322240058,1712910642930,-1198.63,0.00027945,2]
[322240060,1712910642940,-500.0,0.00027945,2]
[322240062,1712910642949,-1555.45,0.00027945,2]
[322240065,1712910642958,-500.0,0.00027945,2]
[322240066,1712910642967,-1051.76,0.00027945,2]
[322240068,1712910642977,-3834.84,0.00027945,2]
[322240071,1712910642988,-500.0,0.00027945,2]
[322240073,1712910642997,-1015.27,0.00027945,2]
[322240075,1712910643006,-500.0,0.00027945,2]
[322240077,1712910643015,-985.4,0.00027945,2]
[322240079,1712910643025,-500.0,0.00027945,2]
[322240081,1712910643034,-1045.23326821,0.00027945,2]
[322240083,1712910643047,-276.7,0.00027945,2]
[322240121,1712910643399,-117.01673179,0.00027945,2]
[322240124,1712910643409,-500.0,0.00027945,2]
[322240126,1712910643418,-83.39231368,0.00027945,2]
[322240358,1712910646179,-500.0,0.00027397,2]
[322240360,1712910646188,-210.69432922,0.00027671,2]
[322240365,1712910646234,-500.0,0.00027397,2]
[322240367,1712910646244,-289.30567078,0.00027671,2]
[322240369,1712910646253,-473.36768632,0.00027945,2]
[322240371,1712910646262,-500.0,0.00027945,2]
[322240373,1712910646271,-13690.89,0.00027945,2]
[322240375,1712910646280,-500.0,0.00027945,2]
[322240377,1712910646289,-500.0,0.00027945,2]
[322240379,1712910646298,-1092.52,0.00027945,2]
[322240381,1712910646308,-1178.35,0.00027945,2]
[322240383,1712910646317,-2756.55,0.00027945,2]
[322240385,1712910646326,-924.03,0.00027945,2]
[322240387,1712910646335,-500.0,0.00027945,2]
[322240389,1712910646344,-500.0,0.00027945,2]
[322240391,1712910646353,-1143.29,0.00027945,2]
[322240393,1712910646362,-2177.16,0.00027945,2]
[322240395,1712910646371,-1630.82,0.00027945,2]
[322240397,1712910646380,-4409.76,0.00027945,2]
[322240399,1712910646389,-5659.2,0.00027945,2]
[322240401,1712910646399,-753.67,0.00027945,2]
[322240403,1712910646410,-1621.63,0.00027945,2]
[322240405,1712910646420,-500.0,0.00027945,2]
[322240407,1712910646428,-1033.77313297,0.00027945,2]
[322242029,1712911642109,-522.7857071,0.00026999,4]
[322242030,1712911642130,-106.92120781,0.00027,2]
[322242031,1712911679659,157.0,0.00028,120]
[322242071,1712911838330,-522.7857071,0.00026997,4]
[322242072,1712911838342,-874.98344823,0.00026998,2]
[322242073,1712911838352,-1440.0,0.00027,2]
[322242074,1712911838361,-505.39840547,0.00027297,3]
[322242075,1712911838370,-225.46531263,0.00027395,2]
[322242076,1712911838379,-300.0,0.00027395,2]
[322242077,1712911838388,-300.0,0.00027395,2]
[322242078,1712911838398,-167.11488346,0.00027395,2]
[322242079,1712911838407,-155.04639008,0.00027395,2]
[322242080,1712911838418,-250.0,0.00027395,2]
[322242081,1712911838428,-3981.53965218,0.00027396,2]
[322242082,1712911838439,-500.0,0.00027397,2]
[322242083,1712911838450,-730.33,0.00027397,2]
[322242084,1712911838460,-500.0,0.00027397,2]
[322242085,1712911838470,-500.0,0.00027397,2]
[322242086,1712911838480,-500.0,0.00027397,2]
[322242088,1712911838489,-500.0,0.00027397,2]
[322242090,1712911838498,-500.0,0.00027397,2]
[322242091,1712911838509,-920.82,0.00027397,2]
[322242093,1712911838518,-500.0,0.00027397,2]
[322242095,1712911838527,-500.0,0.00027397,2]
[322242097,1712911838536,-500.0,0.00027397,2]
[322242099,1712911838545,-611.17876315,0.00027397,2]
[322242101,1712911838554,-500.0,0.00027397,2]
[322242103,1712911838563,-500.0,0.00027397,2]
[322242105,1712911838572,-500.0,0.00027397,2]
[322242107,1712911838581,-516.25016798,0.00027397,2]
[322242109,1712911838590,-504.864169,0.00027397,2]
[322242111,1712911838599,-500.0,0.00027397,2]
[322242113,1712911838608,-1422.85,0.00027397,2]
[322242115,1712911838617,-360.99868882,0.00027397,2]
[322242117,1712911838626,-500.0,0.00027397,2]
[322242119,1712911838635,-500.0,0.00027397,2]
[322242121,1712911838645,-500.0,0.00027397,2]
[322242123,1712911838654,-500.0,0.00027397,2]
[322242125,1712911838664,-500.0,0.00027397,2]
[322242127,1712911838673,-500.0,0.00027397,2]
[322242128,1712911838682,-500.0,0.00027397,2]
[322242130,1712911838691,-500.0,0.00027397,2]